bitfinex/quotes_SOLUSD_20250228
["timestamp","ask_amount","ask_price","bid_price","bid_amount"]
[1740726705319,0.063,129.2,129.19,110.69181043]
[1740726706432,0.063,129.2,129.19,254.93231043]
[1740726706630,0.063,129.25,129.23,0.14216157]
[1740726706929,0.063,129.25,129.24,18.79181043]
[1740726708130,0.063,129.25,129.23,81.6]
[1740726708330,0.063,129.25,129.24,0.14216157]
[1740726708632,0.063,129.25,129.24,18.79181043]
[1740726709024,0.063,129.25,129.24,100.39181043]
[1740726711814,0.063,129.25,129.24,81.6]
[1740726712131,0.063,129.25,129.21,81.6]
[1740726712753,0.063,129.25,129.21,91.88]
[1740726713353,0.063,129.25,129.21,81.6]
[1740726713753,0.063,129.25,129.2,10.28]
[1740726713935,89.1677,129.25,129.18,81.6]
[1740726714136,20.0,129.22,129.17,10.28]
[1740726714655,7.7393,129.21,129.17,10.28]
[1740726714837,7.7393,129.21,129.16,29.07181043]
[1740726715244,7.7393,129.21,129.16,28.92964886]
[1740726715428,7.7393,129.21,129.16,10.28]
[1740726715772,27.0876,129.21,129.16,10.28]
[1740726715956,7.7393,129.21,129.16,10.28]
[1740726716460,7.7375,129.24,129.16,28.92964886]
[1740726716630,27.0813,129.24,129.16,28.92964886]
[1740726717643,7.7375,129.24,129.17,18.79181043]
[1740726718656,27.0813,129.24,129.16,228.41]
[1740726718860,20.0,129.21,129.16,228.41]
[1740726719029,20.0,129.21,129.16,91.91]
[1740726720766,7.7387,129.22,129.17,18.64964886]
[1740726720964,7.7375,129.24,129.18,0.14216157]
[1740726721134,7.7375,129.24,129.17,100.24964886]
[1740726721553,27.0813,129.24,129.17,100.24964886]
[1740726721761,27.0813,129.24,129.17,81.6]
[1740726722074,20.0,129.21,129.16,0.03]
[1740726722542,102.8,129.2,129.16,0.03]
[1740726722735,27.0918,129.19,129.16,0.03]
[1740726722943,6.2733,129.17,129.16,0.03]
[1740726723358,6.2733,129.17,129.16,0.0001]
[1740726724351,7.7405,129.19,129.16,0.0001]
[1740726724673,109.8918,129.19,129.16,0.0001]
[1740726726267,90.5405,129.19,129.16,0.0001]
[1740726726442,82.8,129.19,129.16,0.0001]
[1740726726644,90.5405,129.19,129.16,0.0001]
[1740726727775,27.7393,129.21,129.16,10.2601]
[1740726727946,7.7381,129.23,129.17,18.79181043]
[1740726728153,13.7474,129.24,129.17,100.39181043]
[1740726728745,33.0912,129.24,129.17,100.39181043]
[1740726729067,33.0912,129.24,129.17,81.6]
[1740726729583,0.063,129.2,129.17,81.6]
[1740726730248,0.063,129.2,129.18,18.79181043]
[1740726730809,0.063,129.25,129.2,18.79181043]
[1740726730949,0.063,129.25,129.22,18.79181043]
[1740726731264,0.063,129.25,129.24,18.79181043]
[1740726732157,0.063,129.25,129.23,91.86]
[1740726732767,0.063,129.25,129.24,18.64964886]
[1740726734083,0.063,129.25,129.23,91.86]
[1740726734586,0.063,129.25,129.24,20.41640404]
[1740726734785,0.063,129.26,129.24,20.41640404]
[1740726734971,0.063,129.28,129.27,18.79181043]
[1740726735304,0.063,129.33,129.31,18.79181043]
[1740726735502,0.063,129.33,129.32,31.05181043]
[1740726735671,0.063,129.33,129.32,30.67505314]
[1740726736091,0.063,129.33,129.32,248.77505314]
[1740726736296,0.063,129.33,129.32,247.15181043]
[1740726736889,0.063,129.33,129.32,18.79181043]
[1740726737196,0.063,129.33,129.32,29.05181043]
[1740726738388,0.063,129.33,129.32,38.40804578]
[1740726738588,0.063,129.33,129.32,30.67534578]
[1740726738783,0.063,129.33,129.32,248.77534578]
[1740726738967,0.063,129.33,129.32,254.88451043]
[1740726739173,0.063,129.33,129.32,247.15181043]
[1740726739682,0.063,129.33,129.32,10.26]
[1740726740297,0.063,129.33,129.32,10.40216157]
[1740726740493,0.063,129.33,129.32,10.26]
[1740726740697,0.063,129.33,129.32,92.00216157]
[1740726742796,0.063,129.33,129.32,254.88451043]
[1740726745675,0.063,129.34,129.32,262.67861081]
[1740726745880,0.063,129.34,129.33,22.41461527]
[1740726746280,0.063,129.37,129.36,20.14216157]
[1740726746490,0.063,129.37,129.36,256.89181043]
[1740726747184,0.063,129.37,129.36,236.89181043]
[1740726748393,0.063,129.37,129.36,218.1]
[1740726748592,0.063,129.37,129.36,10.24]
[1740726750389,0.063,129.37,129.36,10.38216157]
[1740726750589,0.063,129.37,129.36,110.63181043]
[1740726750906,0.063,129.37,129.36,254.86211043]
[1740726751102,0.063,129.37,129.36,257.75081043]
[1740726751309,0.063,129.37,129.36,261.75081043]
[1740726751693,0.063,129.38,129.37,22.79181043]
[1740726751882,0.063,129.38,129.37,24.41393193]
[1740726752086,0.0001,129.38,129.37,242.51393193]
[1740726752298,0.0001,129.38,129.37,248.62151043]
[1740726752982,0.063,129.41,129.4,20.0]
[1740726753187,0.063,129.41,129.4,256.89181043]
[1740726754681,0.063,129.41,129.4,264.61971043]
[1740726755099,0.063,129.41,129.4,268.61971043]
[1740726755295,0.063,129.46,129.45,18.79181043]
[1740726755494,0.063,129.46,129.45,248.73340772]
[1740726755705,0.063,129.46,129.45,247.11181043]
[1740726756102,0.063,129.46,129.45,110.61181043]
[1740726756288,0.063,129.46,129.45,91.82]
[1740726757213,0.063,129.46,129.45,91.96216157]
[1740726757387,0.063,129.46,129.45,110.61181043]
[1740726758316,0.063,129.46,129.45,118.33671043]
[1740726758602,0.063,129.46,129.45,256.83671043]
[1740726758811,0.063,129.46,129.45,258.83671043]
[1740726759119,0.063,129.46,129.45,256.83671043]
[1740726759992,0.063,129.46,129.45,110.46964886]
[1740726760198,0.063,129.46,129.45,10.22]
[1740726760418,0.063,129.46,129.43,218.1]
[1740726760619,0.063,129.46,129.41,81.6]
[1740726760807,0.063,129.46,129.4,10.2]
[1740726761520,20.0,129.44,129.36,218.1]
[1740726761819,27.0394,129.44,129.37,10.2]
[1740726762415,20.0,129.41,129.37,10.2]
[1740726762725,30.87704052,129.44,129.37,10.2]
[1740726763115,113.67704052,129.44,129.37,10.2]
[1740726763425,20.0,129.41,129.34,91.8]
[1740726763608,27.0478,129.4,129.34,10.2]
[1740726764204,7.7279,129.4,129.34,10.2]
[1740726765717,13.37939393,129.4,129.34,10.2]
[1740726766024,6.494,129.39,129.34,10.2]
[1740726766224,6.494,129.39,129.31,81.6]
[1740726766533,6.494,129.39,129.31,10.2]
[1740726767206,6.494,129.39,129.32,18.79181043]
[1740726767606,7.7272,129.42,129.32,236.89181043]
[1740726767815,7.7272,129.42,129.33,7.7321]
[1740726768127,7.7272,129.42,129.34,18.79181043]
[1740726768308,6.2924,129.44,129.34,18.79181043]
[1740726768501,7.7263,129.43,129.34,236.89181043]
[1740726768903,109.8417,129.43,129.34,100.39181043]
[1740726770512,109.8417,129.43,129.34,108.12301043]
[1740726770829,109.8417,129.43,129.34,100.39181043]
[1740726771315,109.8417,129.43,129.34,236.89181043]
[1740726772519,5.53686142,129.45,129.38,38.79181043]
[1740726772711,0.063,129.46,129.4,0.14216157]
[1740726772912,0.063,129.46,129.42,0.14216157]
[1740726773105,0.063,129.46,129.42,218.24216157]
[1740726774312,0.063,129.46,129.39,228.3]
[1740726774517,0.063,129.46,129.4,0.14216157]
[1740726774929,0.063,129.46,129.4,18.79181043]
[1740726777637,0.063,129.46,129.39,91.8]
[1740726778732,0.063,129.46,129.39,228.3]
[1740726780738,20.0,129.44,129.39,218.1]
[1740726780934,0.063,129.46,129.39,228.28]
[1740726781238,0.063,129.46,129.4,18.79181043]
[1740726781833,0.063,129.46,129.39,228.28]
[1740726782429,0.063,129.46,129.4,18.79181043]
[1740726782629,0.063,129.46,129.39,228.28]
[1740726782831,0.063,129.46,129.4,0.14216157]
[1740726783044,0.063,129.46,129.39,228.28]
[1740726783723,20.0,129.44,129.39,228.28]
[1740726784048,0.063,129.46,129.34,3.41377101]
[1740726784049,20.0,129.39,129.34,10.18]
[1740726784222,82.8,129.41,129.34,10.18]
[1740726784427,27.0478,129.4,129.34,10.18]
[1740726785742,27.0478,129.4,129.33,81.6]
[1740726785930,82.8,129.39,129.31,10.18]
[1740726786229,82.8,129.39,129.31,91.78]
[1740726786543,27.052,129.38,129.31,91.78]
[1740726788049,27.052,129.38,129.32,18.79181043]
[1740726788233,27.052,129.38,129.31,91.78]
[1740726788744,27.052,129.38,129.31,91.843]
[1740726789340,27.052,129.38,129.32,18.79181043]
[1740726789733,27.052,129.38,129.31,81.663]
[1740726790036,9.3872,129.37,129.31,81.663]
[1740726790628,82.8,129.36,129.31,0.063]
[1740726791243,82.8,129.35,129.31,0.063]
[1740726791432,27.0604,129.34,129.31,0.063]
[1740726791632,82.8,129.33,129.31,0.063]
[1740726791940,82.8,129.33,129.25,91.843]
[1740726792645,82.8,129.33,129.27,0.14216157]
[1740726793029,82.8,129.33,129.26,10.18]
[1740726793449,27.0645,129.32,129.26,10.18]
[1740726793761,6.4682,129.31,129.25,81.663]
[1740726794055,20.0,129.27,129.25,0.063]
[1740726794259,82.8,129.29,129.25,0.063]
[1740726794449,82.8,129.28,129.25,0.063]
[1740726795450,7.7345,129.29,129.25,0.063]
[1740726795634,14.2015,129.31,129.26,18.79181043]
[1740726795960,6.4682,129.31,129.26,28.97181043]
[1740726796330,6.4682,129.31,129.26,247.07181043]
[1740726796655,6.2855,129.35,129.28,18.79181043]
[1740726796836,12.13062294,129.37,129.28,236.89181043]
[1740726797036,19.86042294,129.37,129.28,236.89181043]
[1740726797624,12.13062294,129.37,129.28,218.1]
[1740726797835,19.86032294,129.37,129.29,0.14216157]
[1740726798038,19.86032294,129.37,129.29,18.79181043]
[1740726798748,39.18472294,129.37,129.29,18.79181043]
[1740726799329,39.18472294,129.37,129.26,222.14]
[1740726799330,20.0,129.34,129.26,222.14]
[1740726799647,7.7321,129.33,129.27,18.79181043]
[1740726800030,20.0,129.34,129.27,18.79181043]
[1740726800031,102.1244,129.37,129.27,18.79181043]
[1740726800238,7.7303,129.36,129.27,244.62751043]
[1740726800630,7.7303,129.36,129.27,236.89181043]
[1740726800831,20.0,129.33,129.27,100.39181043]
[1740726802131,7.7315,129.35,129.27,100.39181043]
[1740726803554,7.7304,129.36,129.27,246.25116191]
[1740726803752,7.7597,129.37,129.27,244.62731043]
[1740726804056,7.7597,129.37,129.29,18.79181043]
[1740726804355,7.7597,129.37,129.29,0.14216157]
[1740726804758,0.03,129.37,129.29,0.14216157]
[1740726804933,0.03,129.37,129.31,0.14216157]
[1740726805135,0.03,129.37,129.33,18.79181043]
[1740726807243,0.03,129.37,129.33,244.62381043]
[1740726808645,0.03,129.37,129.33,236.89181043]
[1740726809029,0.03,129.37,129.33,81.6]
[1740726809758,0.03,129.37,129.32,10.16]
[1740726809948,6.3497,129.35,129.32,10.16]
[1740726810262,6.3497,129.35,129.29,18.79181043]
[1740726810556,6.3497,129.35,129.28,10.16]
[1740726810747,6.3497,129.35,129.28,91.76]
[1740726811156,14.0806,129.35,129.28,91.76]
[1740726812040,14.0806,129.35,129.29,10.16]
[1740726812549,20.0,129.31,129.29,10.16]
[1740726812857,7.7345,129.29,129.25,0.063]
[1740726813956,20.0,129.26,129.25,0.063]
[1740726815246,94.34773035,129.29,129.25,0.063]
[1740726815447,30.88403035,129.29,129.25,0.063]
[1740726815648,20.0,129.26,129.25,0.063]
[1740726816062,17.24336084,129.29,129.25,0.063]
[1740726816967,7.7321,129.33,129.25,0.063]
[1740726817256,7.7321,129.33,129.25,81.663]
[1740726817452,3.84482685,129.32,129.25,81.663]
[1740726818765,20.0,129.3,129.25,81.663]
[1740726819062,7.7345,129.29,129.25,10.223]
[1740726820036,7.7345,129.29,129.25,0.063]
[1740726820242,27.0708,129.29,129.25,0.063]
[1740726820446,20.0,129.26,129.25,0.063]
[1740726821062,25.64233622,129.26,129.25,0.063]
[1740726821946,17.90603622,129.26,129.25,0.063]
[1740726822865,7.7358,129.27,129.25,0.063]
[1740726823068,7.7345,129.29,129.25,0.063]
[1740726824461,27.0708,129.29,129.25,0.063]
[1740726825144,19.3363,129.29,129.25,0.063]
[1740726828387,20.0,129.26,129.25,0.063]
[1740726829270,27.7363,129.26,129.25,0.063]
[1740726832675,27.7363,129.26,129.24,0.063]
[1740726832990,20.0,129.22,129.18,10.203]
[1740726833157,110.4411,129.26,129.18,10.203]
[1740726833158,20.0,129.21,129.18,0.063]
[1740726834888,7.7399,129.2,129.18,0.063]
[1740726837981,20.0,129.21,129.18,0.063]
[1740726838191,27.7395,129.21,129.18,0.063]
[1740726839082,47.0878,129.21,129.18,0.063]
[1740726840297,27.7395,129.21,129.18,0.063]
[1740726840875,7.7395,129.21,129.18,0.063]
[1740726841187,7.7381,129.23,129.18,0.063]
[1740726841387,7.7369,129.25,129.19,18.79181043]
[1740726841687,27.0792,129.25,129.2,10.14]
[1740726842583,20.0,129.21,129.18,0.063]
[1740726842784,20.0,129.2,129.18,0.063]
[1740726843285,7.7405,129.19,129.18,0.063]
[1740726843991,7.7363,129.27,129.18,218.163]
[1740726844172,10.51172662,129.29,129.19,21.50441043]
[1740726844367,10.51172662,129.29,129.2,18.79181043]
[1740726844578,27.7665,129.26,129.19,2.7126]
[1740726844962,47.1073,129.26,129.19,2.7126]
[1740726845169,47.1073,129.26,129.18,0.063]
[1740726845681,3.96397553,129.24,129.18,0.063]
[1740726847091,20.0,129.2,129.18,0.063]
[1740726849188,7.7405,129.19,129.18,0.063]
[1740726849694,20.0,129.17,129.16,0.0001]
[1740726851701,27.7417,129.17,129.16,0.0001]
[1740726853485,0.03,129.21,129.17,18.79181043]
[1740726853696,7.7694,129.21,129.17,18.79181043]
[1740726854392,0.03,129.21,129.17,18.79181043]
[1740726854583,0.03,129.21,129.18,10.12]
[1740726854985,0.03,129.26,129.24,18.79181043]
[1740726855185,0.03,129.26,129.24,10.26216157]
[1740726856884,0.03,129.26,129.2,234.7385]
[1740726857191,0.03,129.26,129.21,18.79181043]
[1740726857192,20.03,129.26,129.21,18.79181043]
[1740726857593,0.03,129.26,129.21,18.79181043]
[1740726858094,0.03,129.26,129.21,236.89181043]
[1740726858415,0.03,129.26,129.21,244.63101043]
[1740726858696,0.03,129.26,129.21,236.89181043]
[1740726858902,0.03,129.26,129.21,244.63101043]
[1740726859074,0.03,129.26,129.25,23.56601043]
[1740726859275,0.03,129.34,129.29,0.14216157]
[1740726859475,0.03,129.34,129.31,0.14216157]
[1740726859696,0.03,129.34,129.31,18.79181043]
[1740726860497,0.03,129.34,129.31,0.14216157]
[1740726860687,0.03,129.34,129.3,10.1]
[1740726860880,20.03,129.34,129.3,10.1]
[1740726861187,20.03,129.34,129.26,10.24216157]
[1740726861383,7.7327,129.32,129.26,10.1]
[1740726861582,20.0,129.29,129.26,10.1]
[1740726862085,20.0,129.29,129.22,91.7]
[1740726862596,20.0,129.29,129.23,0.14216157]
[1740726862901,20.0,129.29,129.22,91.7]
[1740726863283,7.7351,129.28,129.23,0.14216157]
[1740726863698,7.7351,129.28,129.22,91.7]
[1740726864002,7.7351,129.28,129.23,0.14216157]
[1740726865101,7.7351,129.28,129.23,18.79181043]
[1740726866602,7.7351,129.28,129.22,91.7]
[1740726866806,20.0,129.25,129.22,91.7]
[1740726867111,20.0,129.25,129.2,91.7]
[1740726867698,20.0,129.25,129.2,81.6]
[1740726868283,7.7375,129.24,129.2,81.6]
[1740726871308,20.0,129.21,129.19,10.1]
[1740726871613,20.0,129.21,129.18,0.063]
[1740726871614,33.3735,129.24,129.18,0.063]
[1740726871814,20.0,129.21,129.18,0.063]
[1740726873714,7.7399,129.2,129.18,0.063]
[1740726874088,20.0,129.17,129.16,0.0001]
[1740726875620,82.8,129.19,129.16,0.0001]
[1740726875800,7.7393,129.21,129.16,0.0001]
[1740726876920,20.0,129.19,129.16,0.0001]
[1740726877093,7.7389,129.22,129.16,0.0001]
[1740726877611,7.7383,129.23,129.16,18.79191043]
[1740726877817,7.7383,129.23,129.18,0.14216157]
[1740726878313,0.03,129.24,129.18,100.39181043]
[1740726878505,0.03,129.24,129.18,244.63146727]
[1740726878713,0.03,129.24,129.2,18.79181043]
[1740726879604,0.03,129.24,129.2,26.53141043]
[1740726880005,0.03,129.24,129.2,18.79181043]
[1740726880308,0.03,129.24,129.19,18.79181043]
[1740726881107,0.03,129.24,129.2,10.08]
[1740726882720,0.03,129.24,129.21,0.14216157]
[1740726883018,0.03,129.24,129.22,18.64964886]
[1740726883436,0.03,129.24,129.23,0.14216157]
[1740726883727,0.03,129.24,129.21,136.5]
[1740726884014,0.03,129.24,129.22,0.14216157]
[1740726885643,0.03,129.24,129.2,28.72964886]
[1740726885826,0.03,129.24,129.19,10.143]
[1740726886339,0.03,129.24,129.2,0.14216157]
[1740726886716,0.03,129.24,129.19,28.78481043]
[1740726886921,0.03,129.24,129.2,18.64964886]
[1740726887221,0.03,129.24,129.19,10.13516157]
[1740726887622,0.03,129.24,129.19,17.87546157]
[1740726887821,0.03,129.24,129.2,18.64964886]
[1740726888032,0.03,129.24,129.2,26.38954886]
[1740726888620,0.03,129.24,129.21,0.14216157]
[1740726889249,0.03,129.24,129.2,18.64964886]
[1740726889250,0.03,129.24,129.19,10.27732314]
[1740726889424,0.03,129.24,129.19,10.13516157]
[1740726892737,0.03,129.24,129.19,17.87546157]
[1740726893051,0.03,129.24,129.2,18.79181043]
[1740726894952,0.03,129.24,129.19,228.23516157]
[1740726895455,0.03,129.24,129.2,18.79181043]
[1740726897543,0.03,129.24,129.2,100.24964886]
[1740726898644,20.0,129.23,129.19,0.05516157]
[1740726901651,27.7383,129.23,129.19,0.05516157]
[1740726901848,14.1623,129.24,129.19,0.05516157]
[1740726902146,27.1115,129.24,129.19,0.05516157]
[1740726902353,20.0,129.21,129.19,0.05516157]
[1740726902850,20.0,129.2,129.19,0.05516157]
[1740726903149,102.8,129.2,129.19,6.157e-05]
[1740726903350,109.0595,129.2,129.19,6.157e-05]
[1740726903651,20.0,129.17,129.16,0.0001]
[1740726903946,82.8,129.18,129.16,0.0001]
[1740726904652,7.7417,129.17,129.16,0.0001]
[1740726906238,27.7417,129.17,129.16,0.0001]
[1740726907435,7.7417,129.17,129.16,0.0001]
[1740726913041,7.7393,129.21,129.16,0.0001]
[1740726913471,7.7393,129.21,129.16,18.79191043]
[1740726913769,7.7393,129.21,129.16,100.39191043]
[1740726914154,7.7393,129.21,129.16,236.89191043]
[1740726914573,0.063,129.23,129.16,244.63411043]
[1740726915175,0.063,129.23,129.18,20.79181043]
[1740726915362,0.063,129.23,129.2,18.79181043]
[1740726915667,0.063,129.23,129.22,18.79181043]
[1740726915974,0.03,129.24,129.22,28.00801043]
[1740726916152,0.03,129.24,129.21,10.04]
[1740726917664,20.0,129.22,129.18,81.6]
[1740726918163,20.0,129.2,129.16,0.0001]
[1740726918542,20.0,129.19,129.16,0.0001]
[1740726918743,20.0,129.18,129.16,0.0001]
[1740726919349,23.883926,129.18,129.16,0.0001]
[1740726919556,7.7417,129.17,129.16,0.0001]
[1740726919866,23.883926,129.18,129.16,0.0001]
[1740726920048,20.0,129.17,129.16,0.0001]
[1740726920244,14.77811649,129.17,129.16,0.0001]
[1740726920980,3.883926,129.18,129.16,0.0001]
[1740726921175,82.8,129.2,129.16,0.0001]
[1740726921377,6.2723,129.21,129.16,0.0001]
[1740726921548,14.0117,129.21,129.16,0.0001]
[1740726921754,0.03,129.23,129.16,0.0001]
[1740726922053,3.93755636,129.21,129.16,0.0001]
[1740726923692,31.67695636,129.21,129.16,0.0001]
[1740726923998,23.93755636,129.21,129.16,0.0001]
[1740726924500,31.67705636,129.21,129.16,0.0001]
[1740726925172,0.03,129.23,129.17,18.79181043]
[1740726925371,0.03,129.23,129.18,10.02]
[1740726925864,7.7682,129.23,129.18,10.02]
[1740726927099,0.03,129.23,129.19,18.79181043]
[1740726927300,0.03,129.23,129.19,100.39181043]
[1740726928165,0.03,129.23,129.19,108.13231043]
[1740726928397,0.03,129.23,129.19,244.63231043]
[1740726928611,0.03,129.23,129.22,38.79181043]
[1740726928903,0.03,129.23,129.22,258.51607385]
[1740726929103,0.03,129.23,129.22,256.89181043]
[1740726929398,0.03,129.26,129.23,18.79181043]
[1740726929567,0.03,129.26,129.24,10.02]
[1740726929973,0.03,129.26,129.25,0.14216157]
[1740726930275,0.03,129.26,129.25,100.39181043]
[1740726932286,0.03,129.26,129.25,255.80082246]
[1740726932585,0.03,129.26,129.25,254.17661043]
[1740726932777,0.03,129.26,129.25,256.17661043]
[1740726932977,0.03,129.34,129.25,256.17661043]
[1740726933171,0.03,129.34,129.27,18.79181043]
[1740726933901,0.03,129.34,129.27,0.14216157]
[1740726934783,0.03,129.34,129.26,100.24964886]
[1740726935080,82.8,129.33,129.26,91.62]
[1740726936297,7.7327,129.32,129.26,91.62]
[1740726936475,7.7327,129.32,129.27,18.79181043]
[1740726936672,7.7322,129.33,129.27,100.39181043]
[1740726937883,7.7615,129.34,129.27,108.12741043]
[1740726938699,7.7615,129.34,129.27,100.39181043]
[1740726939998,27.0904,129.34,129.27,100.39181043]
[1740726940295,82.8,129.33,129.27,10.0]
[1740726942012,27.0645,129.32,129.27,10.0]
[1740726942598,0.03,129.34,129.28,18.79181043]
[1740726942773,0.03,129.34,129.3,0.14216157]
[1740726943595,0.03,129.34,129.29,18.79181043]
[1740726944586,0.03,129.34,129.29,0.14216157]
[1740726945281,0.03,129.34,129.29,18.79181043]
[1740726945481,0.03,129.34,129.29,26.52631043]
[1740726945896,0.03,129.34,129.29,18.79181043]
[1740726946102,0.03,129.34,129.29,0.14216157]
[1740726946290,0.03,129.34,129.29,26.52611043]
[1740726947281,0.03,129.34,129.29,18.79181043]
[1740726947694,0.03,129.34,129.28,218.1]
[1740726948089,0.03,129.34,129.29,18.79181043]
[1740726948282,0.03,129.34,129.29,0.14216157]
[1740726949301,0.03,129.34,129.29,18.79181043]
[1740726949611,0.03,129.34,129.29,244.62631043]
[1740726949783,0.03,129.34,129.29,236.89181043]
[1740726950698,0.03,129.34,129.29,244.62621043]
[1740726951099,0.03,129.34,129.29,246.62621043]
[1740726951302,0.03,129.34,129.33,18.79181043]
[1740726951488,0.03,129.34,129.33,110.37181043]
[1740726951682,0.03,129.34,129.33,246.87181043]
[1740726953008,0.03,129.34,129.33,254.60391043]
[1740726954011,0.03,129.34,129.33,246.87181043]
[1740726955508,0.03,129.34,129.33,254.60391043]
[1740726956405,0.03,129.34,129.33,246.87181043]
[1740726956995,0.03,129.34,129.33,110.37181043]
[1740726959311,0.03,129.34,129.33,118.10391043]
[1740726961294,0.03,129.34,129.33,260.22688945]
[1740726961494,0.03,129.34,129.33,254.60391043]
[1740726962399,0.03,129.34,129.33,91.58]
[1740726962918,0.03,129.34,129.33,110.37181043]
[1740726963114,0.03,129.34,129.33,91.72216157]
[1740726963307,0.03,129.34,129.33,91.58]
[1740726963721,0.03,129.34,129.33,91.72216157]
[1740726965914,30.0378727,129.4,129.33,91.72216157]
[1740726966725,26.18130957,129.4,129.34,0.14216157]
[1740726966923,6.86140957,129.4,129.34,18.79181043]
[1740726968230,6.86140957,129.4,129.34,26.52301043]
[1740726968414,27.0442,129.42,129.34,244.62301043]
[1740726968724,27.0442,129.42,129.34,236.89181043]
[1740726969500,27.0442,129.42,129.34,244.62321043]
[1740726970120,19.3169,129.42,129.34,244.62321043]
[1740726970316,0.03,129.4,129.37,29.0377]
[1740726970511,0.063,129.46,129.44,18.79181043]
[1740726970713,0.063,129.46,129.45,28.75181043]
[1740726970906,0.063,129.46,129.45,10.10216157]
[1740726971309,0.063,129.46,129.45,253.18679157]
[1740726971508,0.063,129.46,129.45,251.56501043]
[1740726971714,0.063,129.46,129.45,249.56501043]
[1740726972632,0.063,129.46,129.45,91.56]
[1740726972923,0.063,129.46,129.45,96.03952311]
[1740726973428,0.063,129.46,129.45,14.43952311]
[1740726973608,20.063,129.46,129.38,136.5]
[1740726973931,20.0,129.45,129.38,9.94]
[1740726974238,11.55051975,129.44,129.38,9.94]
[1740726974410,0.063,129.46,129.38,9.94]
[1740726974411,0.063,129.46,129.39,18.79181043]
[1740726974802,0.063,129.46,129.42,0.14216157]
[1740726975028,0.063,129.46,129.42,218.24216157]
[1740726975233,0.063,129.46,129.42,81.74216157]
[1740726975906,7.7876,129.46,129.42,81.6]
[1740726976312,0.063,129.46,129.42,81.6]
[1740726976612,0.063,129.46,129.43,18.79181043]
[1740726976807,0.063,129.46,129.44,9.94]
[1740726978025,0.063,129.46,129.45,18.79181043]
[1740726978229,0.063,129.46,129.45,236.89181043]
[1740726978728,0.063,129.46,129.45,244.61671043]
[1740726980430,0.063,129.46,129.45,236.89181043]
[1740726980834,0.063,129.46,129.45,218.1]
[1740726981344,0.063,129.46,129.45,218.24216157]
[1740726981542,0.063,129.46,129.45,81.6]
[1740726982633,0.063,129.46,129.45,100.39181043]
[1740726982934,0.063,129.46,129.45,81.6]
[1740726983916,0.063,129.46,129.45,81.74216157]
[1740726984422,0.063,129.46,129.45,81.6]
[1740726984616,0.063,129.46,129.44,9.94]
[1740726985440,0.063,129.46,129.43,9.94]
[1740726986416,0.063,129.46,129.44,0.14216157]
[1740726986617,0.063,129.46,129.44,18.79181043]
[1740726986831,0.063,129.46,129.44,246.23885151]
[1740726987030,0.063,129.46,129.44,89.3254]
[1740726987335,0.063,129.46,129.42,81.6]
[1740726987524,0.063,129.46,129.42,225.8267]
[1740726987730,0.063,129.46,129.43,0.14216157]
[1740726988241,0.063,129.46,129.42,218.1]
[1740726990839,2.7549,129.46,129.4,211.903]
[1740726992148,7.7249,129.45,129.4,211.903]